Cogmind - Beta 14 *** ADVENTURER MODE // 2025.03.26 @ 11:51:13 // Winter2019/RPGLIKE Player: Gallgagger Result: Destroyed by P-70 Sage with Tesla Rifle Performance ------------- Evolutions (6) 3000 Regions Visited (18) 3600 Robots Destroyed (399) 1995 Value Destroyed (15630) 15630 Prototype IDs (33) 660 Alien Tech Used (1) 200 Bonus (4457) 4457 TOTAL SCORE: 29542 Bonus ------- High Alert Combat Kills 3348 Follower Combat Kills 591 Entered Garrisons 400 Acquired ECA 300 Friendly Fire -182 Cogmind --------- Core Integrity 0/750 Matter 260/300 Energy 416/430 System Corruption 3% Temperature Cool (0) Movement Hovering (34) Location -4/Factory Parts ------- > --- POWER (3) -------- Cooled Deuterium Engine Micro Nuclear Core Light Neutrino Core > --- PROPULSION (5) --- Cooled Airjet Improved Antigrav System Improved Antigrav System Improved Linear Gravjet Improved Linear Gravjet > --- UTILITY (10) ----- Gravity Neutralizer Advanced Signal Interpreter Weapon Mount Improved Target Analyzer Advanced Target Analyzer Microactuators Microactuators Experimental Actuator Array Experimental Actuator Array Experimental Reaction Control System > --- WEAPON (6) ------- Thunder Hammer Makeshift Spear Heavy Pick Lance Lance > --- INVENTORY (3) ---- Encrypted Comm Array Insulated Plating Peak State ------------ > --- POWER ------------ Cooled Deuterium Engine Micro Nuclear Core Light Neutrino Core > --- PROPULSION ------- Cooled Airjet Improved Antigrav System Improved Antigrav System Improved Linear Gravjet Improved Linear Gravjet > --- UTILITY ---------- Gravity Neutralizer Advanced Signal Interpreter Weapon Mount Improved Target Analyzer Advanced Target Analyzer Microactuators Experimental Actuator Array Experimental Actuator Array Experimental Reaction Control System Advanced Thermal Defense Suite > --- WEAPON ----------- Thunder Hammer Makeshift Spear Heavy Pick Lance Lance Lance > --- INVENTORY -------- Encrypted Comm Array Microactuators Insulated Plating [Rating: 154] Favorites ----------- Power Micro Nuclear Core Engine Improved Ion Engine Power Core Micro Nuclear Core Propulsion Improved Airjet Wheel Wheel Hover Unit Improved Airjet Utility Weapon Mount Device Weapon Mount Processor Improved Signal Interpreter Protection Light Armor Plating Weapon Flail Impact Weapon Flail Piercing Weapon Heavy Pick Build | -11 -10 -10 -9 -9 -8 -7 -7 -7 -7 -7 -7 -7 -5 -5 -5 -5 -4 -4 ------- Run | Yrd Mat Min Mat Min Mat Fac Gar Fac Gar Sto Rec Scr Fac Upp Upp Zhi Pro Fac Slots Evolved 20 | 4 4 . 2 . 3 . . 2 . 1 . . 2 . 1 . 1 . Power 2 | 1 . . . . . . . . . 1 . . . . . . . . Propulsion 4 | 1 1 . 1 . . . . 1 . . . . . . . . . . Utility 9 | 1 1 . 1 . 2 . . . . . . . 2 . 1 . 1 . Weapon 5 | 1 2 . . . 1 . . 1 . . . . . . . . . . Parts Attached 126 | 4 7 2 11 1 14 12 . 20 8 11 3 1 16 2 3 3 4 4 Power 16 | 2 2 . 1 . 1 . . . . 8 . . 2 . . . . . Engine 11 | 2 2 . 1 . . . . . . 5 . . 1 . . . . . Core 5 | . . . . . 1 . . . . 3 . . 1 . . . . . Reactor . | . . . . . . . . . . . . . . . . . . . Propulsion 27 | 2 1 . 4 . 7 3 . 2 6 1 . . 1 . . . . . Treads . | . . . . . . . . . . . . . . . . . . . Leg . | . . . . . . . . . . . . . . . . . . . Wheel 3 | 2 1 . . . . . . . . . . . . . . . . . Hover 24 | . . . 4 . 7 3 . 2 6 1 . . 1 . . . . . Flight . | . . . . . . . . . . . . . . . . . . . Utility 43 | . . 2 5 1 6 3 . 3 2 . 3 1 6 . 3 3 1 4 Device 23 | . . . . . 1 1 . 2 1 . 3 . 6 . 2 3 . 4 Storage . | . . . . . . . . . . . . . . . . . . . Processor 4 | . . . . . 1 . . . . . . 1 . . 1 . 1 . Hackware . | . . . . . . . . . . . . . . . . . . . Protection 16 | . . 2 5 1 4 2 . 1 1 . . . . . . . . . Artifact . | . . . . . . . . . . . . . . . . . . . Weapon 40 | . 4 . 1 . . 6 . 15 . 2 . . 7 2 . . 3 . Energy Gun . | . . . . . . . . . . . . . . . . . . . Energy Cannon . | . . . . . . . . . . . . . . . . . . . Ballistic Gun . | . . . . . . . . . . . . . . . . . . . Ballistic Cannon . | . . . . . . . . . . . . . . . . . . . Launcher . | . . . . . . . . . . . . . . . . . . . Special Weapon . | . . . . . . . . . . . . . . . . . . . Impact Weapon 20 | . 4 . 1 . . 6 . 5 . 1 . . 2 1 . . . . Slashing Weapon . | . . . . . . . . . . . . . . . . . . . Piercing Weapon 20 | . . . . . . . . 10 . 1 . . 5 1 . . 3 . Special Melee Weapon . | . . . . . . . . . . . . . . . . . . . Unidentified Prototypes 16 | . . . 1 . 1 1 . 2 1 4 . . 3 . . 2 . 1 Parts Lost 1 | . 1 . . . . . . . . . . . . . . . . . Power . | . . . . . . . . . . . . . . . . . . . Propulsion . | . . . . . . . . . . . . . . . . . . . Utility 1 | . 1 . . . . . . . . . . . . . . . . . Weapon . | . . . . . . . . . . . . . . . . . . . Highest Loss Streak 1 | . 1 . . . . . . . . . . . . . . . . . To Critical Strikes . | . . . . . . . . . . . . . . . . . . . Average Slot Usage (%) 97 | . 88 93 100 99 96 96 100 99 100 100 100 100 99 100 100 100 100 98 Engine 8 | . 20 16 15 14 7 5 5 5 5 5 5 5 4 4 4 4 4 4 Core 4 | . . . . . 6 5 5 5 5 5 10 10 8 9 8 8 8 8 Wheel 6 | . 20 25 20 . . . . . . . . . . . . . . . Hover 17 | . . . 4 28 26 23 23 24 26 25 25 25 22 22 21 21 20 20 Device 12 | . . . . . 2 8 11 14 15 15 16 25 29 31 30 30 29 29 Processor 3 | . . . . . . 5 5 5 5 5 5 5 4 4 6 8 8 12 Protection 13 | . 11 18 27 27 26 19 17 11 10 10 8 . . . . . . . Impact Weapon 23 | . 34 33 31 28 26 25 29 13 26 25 25 25 21 8 8 8 5 4 Piercing Weapon 5 | . . . . . . . . 17 5 5 5 5 4 18 17 17 19 18 Peak Build Rating 154 | 4 17 18 30 30 47 65 65 92 105 113 116 118 143 141 147 150 149 154 Average Rating 71 | 3 13 17 20 29 38 55 65 74 101 107 111 116 130 140 144 145 145 147 On Entrance 81 | . 4 17 18 30 30 47 65 65 92 105 110 116 118 140 141 146 146 149 Naked Turns . | . . . . . . . . . . . . . . . . . . . Heaviest Build 78 | 8 24 29 38 38 45 53 52 59 59 78 67 63 72 65 65 65 65 63 Greatest Support 75 | 26 41 41 42 42 51 54 54 62 75 75 74 74 74 74 74 74 74 74 Greatest Overweight (x) 2 | . . . 2 . . . . . . 1 . . . . . . . . Average Overweight (x) . | . . . . . . . . . . . . . . . . . . . Largest Inventory Capacity 3 | . 2 2 2 2 3 3 3 3 3 3 3 3 3 3 3 3 3 3 Average Capacity 2 | . 1 2 2 2 2 3 3 3 3 3 3 3 3 3 3 3 3 3 Most Carried 3 | . 2 2 2 2 3 3 3 3 3 3 3 3 3 3 3 3 3 3 Average Carried 2 | . 1 2 2 2 2 2 3 2 2 3 3 2 2 2 2 3 2 2 Final Capacity 3 | . 2 2 2 2 3 3 3 3 3 3 3 3 3 3 3 3 3 3 Final Carried 3 | . 2 2 2 2 3 3 3 3 3 3 3 3 2 3 3 3 2 2 Class Distribution -------------------- 62% | Hacker-Gladiator 33% | Gladiator 3% | Hacker-Scout Dominant Class ---------------- Gladiator | -10/Materials Gladiator | -10/Mines Gladiator | -9/Materials Gladiator | -9/Mines Hacker-Gladiator | -8/Materials Hacker-Gladiator | -7/Factory Hacker-Gladiator | -7/Garrison Hacker-Gladiator | -7/Factory Hacker-Gladiator | -7/Garrison Hacker-Gladiator | -7/Storage Hacker-Gladiator | -7/Recycling Hacker-Gladiator | -7/Scraptown Hacker-Gladiator | -5/Factory Hacker-Gladiator | -5/Upper Caves Hacker-Gladiator | -5/Upper Caves Hacker-Gladiator | -5/Zhirov Hacker-Gladiator | -4/Proximity Caves Hacker-Gladiator | -4/Factory Resources | -11 -10 -10 -9 -9 -8 -7 -7 -7 -7 -7 -7 -7 -5 -5 -5 -5 -4 -4 ----------- Run | Yrd Mat Min Mat Min Mat Fac Gar Fac Gar Sto Rec Scr Fac Upp Upp Zhi Pro Fac Matter Collected 1662 | 240 60 30 110 10 140 110 75 239 99 126 51 . 194 29 57 40 52 . Remotely . | . . . . . . . . . . . . . . . . . . . Salvage Created 16549 | . 873 555 1001 249 1553 940 1090 997 1701 1863 383 . 2863 503 670 402 713 193 Parts 451 | . 39 14 67 6 36 15 24 35 31 43 2 . 66 10 26 1 22 14 Haulers Intercepted 18 | . 2 . 4 . 4 . . 2 . 3 . . 3 . . . . . Recyclers Shooed 2 | . . . . . . . . . . 1 1 . . . . . . . Parts Field Recycled . | . . . . . . . . . . . . . . . . . . . Retrieved Matter . | . . . . . . . . . . . . . . . . . . . Parts Self-Destructed 54 | . . . . . . . . . . . . . . 8 23 1 22 . Prevented 3 | . . . . . . . . . . . . . . 2 1 . . . Kills | -11 -10 -10 -9 -9 -8 -7 -7 -7 -7 -7 -7 -7 -5 -5 -5 -5 -4 -4 ------- Run | Yrd Mat Min Mat Min Mat Fac Gar Fac Gar Sto Rec Scr Fac Upp Upp Zhi Pro Fac Combat Hostiles Destroyed 330 | . 28 14 44 10 37 21 13 20 19 38 3 . 53 9 9 . 10 2 Melee 196 | . 17 8 28 5 20 8 7 18 7 19 1 . 29 8 9 . 10 2 Cannons 1 | . . 1 . . . . . . . . . . . . . . . . Classes Destroyed 21 | . 7 2 2 1 2 2 1 . . . . . 2 . 1 . 1 . Worker 8 | . 1 3 . . . . . . . 2 . . 2 . . . . . Builder 4 | . 2 . . . . . . . . . 1 . 1 . . . . . Tunneler 5 | . 1 3 1 . . . . . . . . . . . . . . . Hauler 18 | . 2 . 4 . 4 . . 2 . 3 . . 3 . . . . . Recycler 10 | . . 2 . 1 1 . . . . 3 3 . . . . . . . Minesweeper 1 | . . . . . . . . . . . . . . . . . 1 . Mechanic 1 | . . . 1 . . . . . . . . . . . . . . . Operator 12 | . . . 1 . 2 1 . 1 . 4 . . 2 . . . . 1 Watcher 21 | . 3 . 4 . 4 2 . . . 2 . . 4 . . . . 2 Swarmer 70 | . 6 9 14 7 6 4 2 3 3 1 . . 5 1 . . 9 . Grunt 146 | . 22 3 20 2 17 6 4 3 2 22 . . 35 6 3 . . 1 Brawler 5 | . . . . . 3 1 . . . . . . . . 1 . . . Duelist 7 | . . . . 1 3 . . . 1 . . . 2 . . . . . Protector 5 | . . . . . 2 . . 1 . 1 . . 1 . . . . . Sentry 53 | . . 2 10 . 6 6 . 3 6 12 3 . 3 1 1 . . . Specialist 9 | . . . . . . . 5 1 3 . . . . . . . . . Hunter 17 | . . . . . . 2 2 6 3 2 . . 2 . . . . . Programmer 14 | . . . . . . 2 1 3 1 . . . 2 . 4 . . 1 Heavy 2 | . . . . . . . . . . . . . 2 . . . . . Behemoth 3 | . . . . . . . . . . . . . 1 1 . . 1 . Samaritan 1 | . . . . . . . . . . . . . . . 1 . . . Best Kill Streak 10 | . 5 4 10 4 9 9 4 5 5 10 3 . 9 5 4 . 5 1 Combat Bots Only 12 | . 5 3 7 4 6 10 4 4 5 12 2 . 10 5 4 . 5 1 Max Kills in Single Turn 2 | . 1 1 2 1 1 1 1 1 1 2 1 . 1 1 1 . 1 1 Gunslinging . | . . . . . . . . . . . . . . . . . . . Exploded . | . . . . . . . . . . . . . . . . . . . Melee 2 | . 1 1 1 1 1 1 1 1 1 2 1 . 1 1 1 . 1 1 Uniques/NPCs Destroyed . | . . . . . . . . . . . . . . . . . . . Combat | -11 -10 -10 -9 -9 -8 -7 -7 -7 -7 -7 -7 -7 -5 -5 -5 -5 -4 -4 -------- Run | Yrd Mat Min Mat Min Mat Fac Gar Fac Gar Sto Rec Scr Fac Upp Upp Zhi Pro Fac Hostile Shots Fired 1616 | . 104 35 150 25 101 180 129 186 169 231 30 . 140 30 23 . 38 45 Missed 634 | . 19 11 39 9 32 65 53 84 74 103 13 . 67 13 12 . 15 25 Damage Taken 9973 | . 682 183 990 120 890 877 659 991 600 939 63 . 1362 251 175 368 339 484 Core 6856 | . 482 118 615 58 535 513 388 697 408 590 36 . 1084 193 134 332 276 397 Absorbed by Shields 37 | . . . . . . . 37 . . . . . . . . . . . Redirected to Core 5650 | . 366 88 468 58 429 461 326 587 353 521 30 . 958 193 134 140 220 318 Redirected to Shielding 19 | . . . 6 2 1 10 . . . . . . . . . . . . Ignored by Resistances 4522 | . 219 58 297 39 253 484 441 607 401 515 44 . 583 117 61 95 159 149 Core Remaining (%) 84 | 100 . 100 . 100 92 . . . . . . 94 . . . . 21 . Volleys Fired . | . . . . . . . . . . . . . . . . . . . Largest . | . . . . . . . . . . . . . . . . . . . Hottest . | . . . . . . . . . . . . . . . . . . . Shots Fired . | . . . . . . . . . . . . . . . . . . . Gun . | . . . . . . . . . . . . . . . . . . . Cannon . | . . . . . . . . . . . . . . . . . . . Launcher . | . . . . . . . . . . . . . . . . . . . Special . | . . . . . . . . . . . . . . . . . . . Kinetic . | . . . . . . . . . . . . . . . . . . . Thermal . | . . . . . . . . . . . . . . . . . . . Explosive . | . . . . . . . . . . . . . . . . . . . Electromagnetic . | . . . . . . . . . . . . . . . . . . . Robot Hit Streak . | . . . . . . . . . . . . . . . . . . . Robot Miss Streak . | . . . . . . . . . . . . . . . . . . . Penetration Max . | . . . . . . . . . . . . . . . . . . . Secondary Targets . | . . . . . . . . . . . . . . . . . . . Shots Hit Robots 1082 | . 77 32 126 13 109 77 55 71 63 138 16 . 165 39 32 6 47 16 Core Hits 222 | . 17 5 23 3 20 8 7 24 10 27 2 . 28 13 12 2 16 5 Critical Kills 34 | . 3 . 6 2 4 1 . . 2 9 . . 7 . . . . . Critical Parts Destroyed 194 | . 9 9 22 2 26 20 8 1 18 29 7 . 38 1 2 1 . 1 Critical Strikes 259 | . 12 10 29 4 31 22 8 6 22 39 8 . 45 6 5 2 6 4 Smash 235 | . 12 10 29 4 31 22 8 1 22 38 7 . 45 2 2 1 . 1 Impale 24 | . . . . . . . . 5 . 1 1 . . 4 3 1 6 3 Melee Attacks 1477 | . 110 43 147 19 129 103 83 100 89 178 19 . 227 47 43 34 59 47 Impact 1164 | . 110 43 147 19 129 103 83 31 81 153 15 . 202 13 6 12 11 6 Slashing . | . . . . . . . . . . . . . . . . . . . Piercing 313 | . . . . . . . . 69 8 25 4 . 25 34 37 22 48 41 Sneak Attacks 101 | . 8 9 9 1 7 2 5 3 6 16 9 . 23 . 1 . 2 . Combat Hostiles 32 | . 2 . 1 . 1 2 4 . 6 2 5 . 9 . . . . . Follow-up Attacks 438 | . 12 7 35 3 36 29 26 30 31 73 7 . 71 25 17 3 25 8 Damage Inflicted 55133 | . 3418 1620 5255 550 4194 2827 3430 2746 4554 8097 1148 . 10465 1784 1625 468 2123 829 Guns . | . . . . . . . . . . . . . . . . . . . Cannons . | . . . . . . . . . . . . . . . . . . . Explosions . | . . . . . . . . . . . . . . . . . . . Melee 55033 | . 3418 1620 5255 550 4194 2827 3430 2746 4554 8097 1148 . 10465 1784 1625 468 2123 729 Ramming 100 | . . . . . . . . . . . . . . . . . . 100 Kinetic . | . . . . . . . . . . . . . . . . . . . Thermal . | . . . . . . . . . . . . . . . . . . . Explosive . | . . . . . . . . . . . . . . . . . . . Electromagnetic . | . . . . . . . . . . . . . . . . . . . Impact 46461 | . 3418 1620 5255 550 4194 2827 3430 805 4298 7555 1025 . 9885 652 307 142 387 111 Slashing . | . . . . . . . . . . . . . . . . . . . Piercing 8572 | . . . . . . . . 1941 256 542 123 . 580 1132 1318 326 1736 618 Highest Corruption 5 | . . . . . . 2 3 4 4 5 5 . 2 2 2 2 2 3 Average Corruption 2 | . . . . . . 1 2 3 4 4 5 . 2 2 2 2 2 2 Corruption Purged . | . . . . . . . . . . . . . . . . . . . Corruption Blocked . | . . . . . . . . . . . . . . . . . . . Effects 100 | . . . . . . 4 11 22 14 17 6 . 8 5 9 1 3 . Message Errors 24 | . . . . . . 1 2 4 5 6 1 . 1 2 1 . 1 . Matter Fused 31 | . . . . . . 1 8 4 3 4 2 . 3 1 3 . 2 . Heat Flow Errors 14 | . . . . . . 1 . 3 4 3 2 . . . 1 . . . Energy Discharges 15 | . . . . . . 1 . 4 1 1 . . 3 . 4 1 . . Parts Rejected 2 | . . . . . . . . 2 . . . . . . . . . . Parts Fused 2 | . . . . . . . . 2 . . . . . . . . . . Data Loss (minor) 4 | . . . . . . . . . 1 1 . . 1 1 . . . . Data Loss (major) 4 | . . . . . . . 1 2 . 1 . . . . . . . . Alerts 4 | . . . . . . . . 1 . 1 1 . . 1 . . . . Overload Shots . | . . . . . . . . . . . . . . . . . . . Overflow Damage 18042 | . 800 863 1549 335 1450 1007 1064 327 2071 3051 704 . 3675 119 402 273 243 109 Projectiles 74 | . . . . 46 . . . . . . . . . . . 28 . . Explosions . | . . . . . . . . . . . . . . . . . . . Melee 17968 | . 800 863 1549 289 1450 1007 1064 327 2071 3051 704 . 3675 119 402 245 243 109 Knockbacks 140 | . 27 7 16 3 17 10 3 . 9 10 1 . 33 1 1 1 . 1 Impact 130 | . 25 6 15 2 16 9 3 . 8 9 1 . 32 1 1 1 . 1 Kinetic . | . . . . . . . . . . . . . . . . . . . Secondary 10 | . 2 1 1 1 1 1 . . 1 1 . . 1 . . . . . Self-Inflicted Damage 100 | . . . . . . . . . . . . . . . . . . 100 Shots . | . . . . . . . . . . . . . . . . . . . Rammed . | . . . . . . . . . . . . . . . . . . . Targets Rammed . | . . . . . . . . . . . . . . . . . . . Kicked . | . . . . . . . . . . . . . . . . . . . Crushed . | . . . . . . . . . . . . . . . . . . . Highest Temperature 277 | . . . . . . 131 . 263 277 241 277 . 18 . 91 . . . Average Temperature 115 | . . . . . . 79 . 125 116 117 125 . 11 . 55 . . . Received Heat Transfer 3187 | . 429 45 471 6 378 249 222 213 159 462 18 . 316 114 45 . 18 42 Effects 1 | . . . . . . . . . 1 . . . . . . . . . Energy Bleed 1 | . . . . . . . . . 1 . . . . . . . . . Siege Activations . | . . . . . . . . . . . . . . . . . . . Robots Corrupted 172 | . 15 8 21 5 23 16 12 2 16 23 3 . 26 1 . 1 . . Combat Hostiles 133 | . 11 5 16 5 17 13 6 2 12 19 2 . 24 1 . . . . Parts Fried 259 | . 16 14 31 4 35 20 14 8 22 30 7 . 53 1 1 2 . 1 Impact Corruptions 552 | . 33 32 64 13 61 41 32 10 49 85 17 . 94 4 4 9 1 3 Robots Melted . | . . . . . . . . . . . . . . . . . . . Combat Hostiles . | . . . . . . . . . . . . . . . . . . . Parts Melted . | . . . . . . . . . . . . . . . . . . . Heat Transferred . | . . . . . . . . . . . . . . . . . . . Parts Sabotaged . | . . . . . . . . . . . . . . . . . . . Parts Stolen . | . . . . . . . . . . . . . . . . . . . Parts Stripped . | . . . . . . . . . . . . . . . . . . . Power Chain Reactions . | . . . . . . . . . . . . . . . . . . . Alert | -11 -10 -10 -9 -9 -8 -7 -7 -7 -7 -7 -7 -7 -5 -5 -5 -5 -4 -4 ------- Run | Yrd Mat Min Mat Min Mat Fac Gar Fac Gar Sto Rec Scr Fac Upp Upp Zhi Pro Fac Peak Influence 1512 | . 545 410 1050 611 1096 664 1092 680 1019 1512 677 . 1112 . . . . 486 Initial 496 | . . 100 88 346 201 310 355 496 335 427 432 . . . . . . 184 Average 526 | . 263 245 609 543 700 347 760 525 717 1018 580 . 427 . . . . 307 Maximum Alert Level 4 | . 2 2 3 2 3 2 3 2 3 4 2 . 4 . . . . 2 Low Security (%) 12 | 100 34 19 11 . . 27 . . . . . . 17 . . . . 12 Level 1 22 | . 43 75 4 2 10 30 12 8 9 10 . . 24 . . . . 70 Level 2 43 | . 21 5 46 97 39 42 23 91 40 16 100 . 45 . . . . 16 Level 3 17 | . . . 37 . 50 . 64 . 49 20 . . 12 . . . . . Level 4 4 | . . . . . . . . . . 52 . . 1 . . . . . Level 5 . | . . . . . . . . . . . . . . . . . . . High Security . | . . . . . . . . . . . . . . . . . . . Max Security . | . . . . . . . . . . . . . . . . . . . Squads Dispatched 60 | . 10 . 8 . 6 8 . 8 . 11 . . 8 . . . . 1 Investigation 32 | . 10 . 6 . 2 4 . 4 . 3 . . 3 . . . . . Extermination 6 | . . . . . . 2 . 3 . . . . 1 . . . . . Reinforcement 12 | . . . 2 . 1 . . . . 5 . . 3 . . . . 1 Assault 8 | . . . . . 2 2 . 1 . 2 . . 1 . . . . . Garrison 2 | . . . . . 1 . . . . 1 . . . . . . . . Intercept . | . . . . . . . . . . . . . . . . . . . Searches Triggered 2 | . . . . . . . . . . . . . 1 . . . . 1 Construction Impeded 1 | . . . . . . . . . . 1 . . . . . . . . Haulers Reinforced 1 | . . . . . . . . . . 1 . . . . . . . . Active Scanning Responses . | . . . . . . . . . . . . . . . . . . . Cargo Convoy Interrupts 2 | . . . . . . . . 1 . . . . 1 . . . . . Stealth | -11 -10 -10 -9 -9 -8 -7 -7 -7 -7 -7 -7 -7 -5 -5 -5 -5 -4 -4 --------- Run | Yrd Mat Min Mat Min Mat Fac Gar Fac Gar Sto Rec Scr Fac Upp Upp Zhi Pro Fac Distress Signals 9 | . 1 . 3 . 2 1 . 1 . . . . . . . . . 1 Communications Jammed . | . . . . . . . . . . . . . . . . . . . Distress Signals . | . . . . . . . . . . . . . . . . . . . Times Spotted 486 | . 36 14 62 11 58 37 21 32 22 49 2 . 91 9 9 . 16 17 Peak Tracking Total 12 | . 5 3 6 4 8 9 12 8 5 11 1 . 7 5 3 . 5 10 Tactical Retreats 42 | . 1 . 8 1 4 1 . 1 2 3 . . 15 . . . 3 3 Traps | -11 -10 -10 -9 -9 -8 -7 -7 -7 -7 -7 -7 -7 -5 -5 -5 -5 -4 -4 ------- Run | Yrd Mat Min Mat Min Mat Fac Gar Fac Gar Sto Rec Scr Fac Upp Upp Zhi Pro Fac Traps Triggered 24 | . 2 . 5 . . 2 3 3 1 4 . . 4 . . . . . Indirectly . | . . . . . . . . . . . . . . . . . . . Trap Hack Attempts . | . . . . . . . . . . . . . . . . . . . Triggered . | . . . . . . . . . . . . . . . . . . . Disarmed 5 | . . . . . . . . 5 . . . . . . . . . . Reprogrammed 4 | . . . . . 4 . . . . . . . . . . . . . Reused . | . . . . . . . . . . . . . . . . . . . Traps Extracted . | . . . . . . . . . . . . . . . . . . . Installed . | . . . . . . . . . . . . . . . . . . . Triggered 1 | . . . . . . . . . . . . . . . . . 1 . Machines | -11 -10 -10 -9 -9 -8 -7 -7 -7 -7 -7 -7 -7 -5 -5 -5 -5 -4 -4 ---------- Run | Yrd Mat Min Mat Min Mat Fac Gar Fac Gar Sto Rec Scr Fac Upp Upp Zhi Pro Fac Machines Disabled 16 | . . . . . 1 1 3 . 3 4 . . 2 . . 2 . . Max in Single Turn 1 | . . . . . 1 1 1 . 1 1 . . 1 . . 1 . . Garrison Access 7 | . . . . . 1 1 . 1 . 1 . . 2 . . . . 1 Garrison Relay 4 | . . . . . . . 2 . 2 . . . . . . . . . Machines Repaired . | . . . . . . . . . . . . . . . . . . . Machines Dismantled . | . . . . . . . . . . . . . . . . . . . Machines Sabotaged 3 | . 3 . . . . . . . . . . . . . . . . . Overloaded Fab Kills . | . . . . . . . . . . . . . . . . . . . Hacking | -11 -10 -10 -9 -9 -8 -7 -7 -7 -7 -7 -7 -7 -5 -5 -5 -5 -4 -4 --------- Run | Yrd Mat Min Mat Min Mat Fac Gar Fac Gar Sto Rec Scr Fac Upp Upp Zhi Pro Fac Machines Accessed 104 | . 11 . 6 . 9 13 3 19 4 8 11 . 12 2 . 4 . 2 Terminals 62 | . 8 . 4 . 7 8 3 10 4 4 6 . 7 1 . . . . Fabricators 10 | . . . . . . 3 . 5 . . . . 2 . . . . . Repair Stations 2 | . 1 . . . . . . . . 1 . . . . . . . . Recycling Units 15 | . 2 . 2 . 2 . . 2 . 2 5 . . . . . . . Scanalyzers 2 | . . . . . . . . . . . . . 1 . . . . 1 Garrison Access 8 | . . . . . . 2 . 2 . 1 . . 2 . . . . 1 Total Hacks 340 | . 36 . 17 . 35 62 4 63 6 20 23 . 48 4 . 17 . 5 Successful 212 | . 20 . 10 . 23 34 3 44 3 14 13 . 25 4 . 17 . 2 Failed 127 | . 16 . 7 . 11 28 1 19 3 6 10 . 23 . . . . 3 Catastrophic 19 | . 1 . . . 1 6 . 2 . . 1 . 7 . . . . 1 Database Lockouts 1 | . . . . . 1 . . . . . . . . . . . . . Manual 194 | . 17 . 14 . 30 38 . 45 . 9 22 . 19 . . . . . Terminals 240 | . 29 . 14 . 33 47 4 39 6 13 17 . 35 3 . . . . Fabricators 29 | . . . . . . 10 . 13 . . . . 6 . . . . . Repair Stations 6 | . 5 . . . . . . . . 1 . . . . . . . . Recycling Units 23 | . 2 . 3 . 2 . . 8 . 2 6 . . . . . . . Scanalyzers 5 | . . . . . . . . . . . . . 2 . . . . 3 Garrison Access 19 | . . . . . . 5 . 3 . 4 . . 5 . . . . 2 Terminal Hacks 107 | . 8 . 6 . 13 18 3 12 3 8 2 . 13 4 . 17 . . Record 9 | . . . 1 . . . . . . . . . . 3 . 5 . . Part Schematic 11 | . . . . . 2 2 . 2 . . 1 . . . . 4 . . Robot Schematic 3 | . . . . . . 2 . . . . . . 1 . . . . . Robot Analysis 13 | . 5 . . . . 1 . 1 . 1 . . 1 . . 4 . . Prototype ID Bank 8 | . 1 . 1 . . 1 . . . 1 . . . . . 4 . . Open Door 4 | . . . . . . . . . 1 2 . . . 1 . . . . Level Access Points 1 | . . . . . . 1 . . . . . . . . . . . . Branch Access Points 3 | . . . . . 1 1 . . . . . . 1 . . . . . Emergency Access Points 1 | . . . . . . . 1 . . . . . . . . . . . Machine Index 2 | . . . . . 1 1 . . . . . . . . . . . . Terminal Index 2 | . . . . . . . . 1 . . . . 1 . . . . . Garrison Index 2 | . . . 1 . . . . 1 . . . . . . . . . . Alert Level 10 | . . . 1 . 3 1 . 1 . 2 1 . 1 . . . . . Unreport Threat 19 | . 1 . 1 . 3 4 . 1 . 2 . . 7 . . . . . Locate Traps 3 | . 1 . . . . 1 . 1 . . . . . . . . . . Disarm Traps 1 | . . . . . . . . 1 . . . . . . . . . . Reprogram Traps 1 | . . . . . 1 . . . . . . . . . . . . . Hauler Manifests 4 | . . . 1 . . 1 . 1 . . . . 1 . . . . . Registered Components 3 | . . . . . 1 1 . 1 . . . . . . . . . . Registered Prototypes 1 | . . . . . . . . 1 . . . . . . . . . . Zone Layout 2 | . . . . . 1 1 . . . . . . . . . . . . Garrison Registry 2 | . . . . . . . 1 . 1 . . . . . . . . . Patrol Navigation 2 | . . . . . . . 1 . 1 . . . . . . . . . Fabricator Hacks 19 | . . . . . . 6 . 9 . . . . 4 . . . . . Load Schematic 9 | . . . . . . 3 . 4 . . . . 2 . . . . . Build 10 | . . . . . . 3 . 5 . . . . 2 . . . . . Repair Station Hacks 2 | . 2 . . . . . . . . . . . . . . . . . Refit 2 | . 2 . . . . . . . . . . . . . . . . . Recycling Unit Hacks . | . . . . . . . . . . . . . . . . . . . Scanalyzer 3 | . . . . . . . . . . . . . 2 . . . . 1 Insert Component 2 | . . . . . . . . . . . . . 1 . . . . 1 Analyze 1 | . . . . . . . . . . . . . 1 . . . . . Garrison Access Hacks 7 | . . . . . . 1 . 2 . 1 . . 2 . . . . 1 Unlock Access 2 | . . . . . . 1 . 1 . . . . . . . . . . Seal Access 5 | . . . . . . . . 1 . 1 . . 2 . . . . 1 Unauthorized Hacks 73 | . 10 . 4 . 9 9 . 21 . 5 11 . 4 . . . . . Terminals 46 | . 8 . 2 . 7 7 . 10 . 2 6 . 4 . . . . . Track 1 | . . . . . . . . 1 . . . . . . . . . . Botnet 36 | . 2 . 2 . 6 7 . 7 . 2 6 . 4 . . . . . Disrupt 2 | . . . . . 1 . . 1 . . . . . . . . . . Skim 1 | . . . . . . . . 1 . . . . . . . . . . Sabotage 5 | . 5 . . . . . . . . . . . . . . . . . Search 1 | . 1 . . . . . . . . . . . . . . . . . Fabricators 6 | . . . . . . 2 . 4 . . . . . . . . . . Prioritize 5 | . . . . . . 2 . 3 . . . . . . . . . . Liberate 1 | . . . . . . . . 1 . . . . . . . . . . Repair Stations 1 | . . . . . . . . . . 1 . . . . . . . . Patch 1 | . . . . . . . . . . 1 . . . . . . . . Recycling Units 19 | . 2 . 2 . 2 . . 6 . 2 5 . . . . . . . Monitor 1 | . . . . . . . . 1 . . . . . . . . . . Reject 2 | . . . . . . . . 2 . . . . . . . . . . Recyclers 1 | . . . . . . . . 1 . . . . . . . . . . Mask 2 | . . . . . . . . 2 . . . . . . . . . . Tunnel 13 | . 2 . 2 . 2 . . . . 2 5 . . . . . . . Scanalyzers . | . . . . . . . . . . . . . . . . . . . Garrison Access 1 | . . . . . . . . 1 . . . . . . . . . . Reprogram 1 | . . . . . . . . 1 . . . . . . . . . . Data Cores Recovered 6 | . . . . . 1 1 . 1 . 1 . . 2 . . . . . Used 3 | . . . . . 1 1 . . . 1 . . . . . . . . Hacking Detections 58 | . 5 . 3 . 6 11 1 14 1 3 4 . 9 . . . . 1 Full Trace Events 16 | . 3 . 1 . . 4 . 4 . . 1 . 3 . . . . . Feedback Events . | . . . . . . . . . . . . . . . . . . . Feedback Blocked . | . . . . . . . . . . . . . . . . . . . Robot Schematics Acquired 3 | . . . . . . 2 . . . . . . 1 . . . . . Robots Built 6 | . . . . . . . . 4 . . . . 2 . . . . . Authchips . | . . . . . . . . . . . . . . . . . . . Time 120 | . . . . . . . . 44 . . . . 76 . . . . . Total Robot Build Rating 26 | . . . . . . . . 16 . . . . 10 . . . . . Part Schematics Acquired 12 | . . . . . 2 2 . 2 . . 1 . 1 . . 4 . . Parts Built 16 | . . . . . . 6 . 8 . . . . 2 . . . . . Authchips . | . . . . . . . . . . . . . . . . . . . Time 279 | . . . . . . 72 . 172 . . . . 35 . . . . . Total Part Build Rating 78 | . . . . . . 26 . 40 . . . . 12 . . . . . Parts Repaired . | . . . . . . . . . . . . . . . . . . . Time . | . . . . . . . . . . . . . . . . . . . Parts Recycled . | . . . . . . . . . . . . . . . . . . . Recycled Matter . | . . . . . . . . . . . . . . . . . . . Retrieved Matter . | . . . . . . . . . . . . . . . . . . . Retrieved Components . | . . . . . . . . . . . . . . . . . . . Parts Scanalyzed 2 | . . . . . . . . . . . . . 1 . . . . 1 Part Schematics Acquired 1 | . . . . . . . . . . . . . 1 . . . . . Parts Damaged . | . . . . . . . . . . . . . . . . . . . Bothacking | -11 -10 -10 -9 -9 -8 -7 -7 -7 -7 -7 -7 -7 -5 -5 -5 -5 -4 -4 ------------ Run | Yrd Mat Min Mat Min Mat Fac Gar Fac Gar Sto Rec Scr Fac Upp Upp Zhi Pro Fac Used RIF Installer . | . . . . . . . . . . . . . . . . . . . Robots Hacked . | . . . . . . . . . . . . . . . . . . . Non-combat . | . . . . . . . . . . . . . . . . . . . Combat . | . . . . . . . . . . . . . . . . . . . Robot Hacks Applied . | . . . . . . . . . . . . . . . . . . . Relay Couplers Released 11 | . . . . . . 1 5 . 4 . . . . . . . . 1 Machine Destruction 10 | . . . . . . 1 4 . 4 . . . . . . . . 1 Programmers 1 | . . . . . . . 1 . . . . . . . . . . . Fabnet Peak Effective % . | . . . . . . . . . . . . . . . . . . . Robots Rewired 8 | . . . . . . . 6 . 2 . . . . . . . . . Allies Hacked . | . . . . . . . . . . . . . . . . . . . Hacks Repelled . | . . . . . . . . . . . . . . . . . . . Allies | -11 -10 -10 -9 -9 -8 -7 -7 -7 -7 -7 -7 -7 -5 -5 -5 -5 -4 -4 -------- Run | Yrd Mat Min Mat Min Mat Fac Gar Fac Gar Sto Rec Scr Fac Upp Upp Zhi Pro Fac Total Allies 18 | . . 1 . 3 . . 6 4 2 . . . 2 . . . . . Largest Group 8 | . . 1 . 3 3 . 6 8 2 2 . . 2 . . . . . Highest-Rated Group 138 | . . 31 . 40 40 . 138 138 78 78 . . 28 . . . . . Highest-Rated Ally 39 | . . 31 . 16 16 . 24 24 39 39 . . 14 . . . . . Total Orders 7 | . . . . . . . . 7 . . . . . . . . . . STAY 5 | . . . . . . . . 5 . . . . . . . . . . FOLLOW 2 | . . . . . . . . 2 . . . . . . . . . . Ally Attacks 144 | . . 5 . . 36 . 36 28 . 37 . . 2 . . . . . Total Damage 2065 | . . 82 . . 383 . 738 311 . 551 . . . . . . . . Kills 24 | . . . . . 4 . 10 2 . 8 . . . . . . . . Allies Corrupted . | . . . . . . . . . . . . . . . . . . . Allies Melted . | . . . . . . . . . . . . . . . . . . . Intel | -11 -10 -10 -9 -9 -8 -7 -7 -7 -7 -7 -7 -7 -5 -5 -5 -5 -4 -4 ------- Run | Yrd Mat Min Mat Min Mat Fac Gar Fac Gar Sto Rec Scr Fac Upp Upp Zhi Pro Fac Robot Analysis Total 13 | . 5 . . . . 1 . 1 . 1 . . 1 . . 4 . . Derelict Logs Recovered 8 | . . 1 . 1 . . . . . . . . . 1 3 . 2 . Drone Launches . | . . . . . . . . . . . . . . . . . . . Drone Recoveries . | . . . . . . . . . . . . . . . . . . . Exploration | -11 -10 -10 -9 -9 -8 -7 -7 -7 -7 -7 -7 -7 -5 -5 -5 -5 -4 -4 ------------- Run | Yrd Mat Min Mat Min Mat Fac Gar Fac Gar Sto Rec Scr Fac Upp Upp Zhi Pro Fac Turns Passed 12412 | 45 1293 759 1598 366 817 886 494 1433 599 807 257 227 1248 351 514 113 330 275 Spaces Moved 16993 | 45 1075 717 1356 516 1067 1360 564 1752 988 952 608 653 1798 830 1246 217 737 512 Core 2 | 2 . . . . . . . . . . . . . . . . . . Treads . | . . . . . . . . . . . . . . . . . . . Legs . | . . . . . . . . . . . . . . . . . . . Wheels 2876 | 43 1075 717 1041 . . . . . . . . . . . . . . . Hover 14115 | . . . 315 516 1067 1360 564 1752 988 952 608 653 1798 830 1246 217 737 512 Flight . | . . . . . . . . . . . . . . . . . . . Fastest Speed 32 | 50 86 86 48 48 38 38 38 34 32 34 34 34 34 34 34 34 34 34 Average Speed 44 | 88 89 86 77 48 40 38 38 36 33 34 34 34 34 34 34 34 34 34 Slowest Speed 115 | 90 90 86 115 48 48 38 38 38 36 102 34 34 34 34 34 34 34 34 Overloaded Moves . | . . . . . . . . . . . . . . . . . . . Propulsion Burnouts . | . . . . . . . . . . . . . . . . . . . Robots Hopped . | . . . . . . . . . . . . . . . . . . . Cave-ins Triggered . | . . . . . . . . . . . . . . . . . . . Exploration Rate (%) 70 | 3 97 98 96 97 70 44 66 35 68 95 98 49 48 87 99 74 91 20 Regions Visited 18 Branch Regions 9 Pre-discovered Areas 19 | . 2 1 2 . 2 . . . . 3 5 . . 1 . 3 . . Known Exits Taken 11 | . . . . . 1 1 . 1 . 1 1 1 1 1 1 1 1 . Unknown Exits Taken 5 | 1 1 1 1 1 . . . . . . . . . . . . . . Scrap Searched 15 | . . 1 . 2 . . . . . . . 5 . 1 5 . 1 . Spaces Dug 39 | . . . . . . 9 . 11 . 2 . . 3 1 . . . 13 Terrain Destroyed 40 | . . . . . . 9 . 11 . 2 . . 3 1 . . . 14 Melee 39 | . . . . . . 9 . 11 . 2 . . 3 1 . . . 13 Projectile . | . . . . . . . . . . . . . . . . . . . AOE . | . . . . . . . . . . . . . . . . . . . Terrain Rammed 1 | . . . . . . . . . . . . . . . . . . 1 Walls Destroyed 1 | . . . . . . . . . . . . . . . . . . 1 Machines Disabled . | . . . . . . . . . . . . . . . . . . . Actions | -11 -10 -10 -9 -9 -8 -7 -7 -7 -7 -7 -7 -7 -5 -5 -5 -5 -4 -4 --------- Run | Yrd Mat Min Mat Min Mat Fac Gar Fac Gar Sto Rec Scr Fac Upp Upp Zhi Pro Fac Total 20278 | 48 1276 813 1719 609 1287 1605 752 2407 1140 1235 631 657 2289 877 1315 236 789 593 Wait 1810 | . 88 49 203 71 89 117 39 511 80 136 3 . 299 20 45 . 17 43 Move 16972 | 44 1074 716 1355 515 1066 1359 562 1751 985 951 607 652 1797 829 1245 216 736 512 Hop . | . . . . . . . . . . . . . . . . . . . Pick Up 20 | . 3 . 2 . 2 2 . 4 2 . . 2 1 1 1 . . . Fast Attach 34 | 4 4 1 2 1 3 2 . 3 . 2 1 . 7 . 1 1 2 . Attach 7 | . 1 . . . . . . 1 . . . . 3 . . . 1 1 Detach 2 | . . . . . . . . . . . . . 1 . . . . 1 Swap 86 | . 2 1 9 . 11 10 . 16 8 9 2 1 6 2 2 3 1 3 Drop 52 | . 2 1 6 . 8 8 . 7 2 4 1 2 6 . 1 . 3 1 Fire . | . . . . . . . . . . . . . . . . . . . Melee 742 | . 77 27 92 11 75 58 43 52 41 71 9 . 97 15 15 16 22 21 Ram 1 | . . . . . . . . . . . . . . . . . . 1 Kick . | . . . . . . . . . . . . . . . . . . . Crush . | . . . . . . . . . . . . . . . . . . . Escape Stasis 78 | . . . . . . 13 33 13 13 6 . . . . . . . . Rewire 40 | . . . . . . . 38 . 2 . . . . . . . . . Trap . | . . . . . . . . . . . . . . . . . . . Miscellaneous 434 | . 25 18 50 11 33 36 37 49 7 56 8 . 72 10 5 . 7 10 Route ------- -11/Scrapyard -10/Materials (discovered 5 exits: *Mat x3 / [*Min] / [*Sub]) -10/Mines (discovered 4 exits: *Mat x2 / [*Exi] / [*Sub]) -9/Materials (discovered 4 exits: *Mat x3 / [*Min]) -9/Mines (discovered 2 exits: *Mat x2) -8/Materials (discovered 2 exits: *Fac x2) -7/Factory (discovered 8 exits: *Fac x4 / Sto / Low x2 / Gar) -7/Garrison (discovered 3 exits: *Fac x3) -7/Factory (discovered 3 exits: *Fac / Low / Gar) -7/Garrison (discovered 3 exits: *Sto x3) -7/Storage (discovered 2 exits: *Fac / *Rec) -7/Recycling (discovered 2 exits: *Fac / *Scr) -7/Scraptown -5/Factory (discovered 3 exits: *Fac / *Upp x2) -5/Upper Caves -5/Upper Caves (discovered 2 exits: *Fac / *Zhi) -5/Zhirov -4/Proximity Caves -4/Factory (discovered 2 exits: *Res / Upp) History --------- Turn | Location | Event 1 | -11/Scrapyard | Upgraded with Power slot (x1) 1 | -11/Scrapyard | Upgraded with Propulsion slot (x1) 1 | -11/Scrapyard | Upgraded with Utility slot (x1) 1 | -11/Scrapyard | Upgraded with Weapon slot (x1) 16 | -11/Scrapyard | Discovered new exit (range 15) 46 | -11/Scrapyard | Entered Materials 58 | -10/Materials | Upgraded with Weapon slot (x1) 348 | -10/Materials | Build established: Gladiator 362 | -10/Materials | Discovered new exit (range 16) 497 | -10/Materials | Reached level 2 513 | -10/Materials | Discovered new exit (range 16) 734 | -10/Materials | Discovered new exit (range 14) 839 | -10/Materials | Reached level 3 856 | -10/Materials | Upgraded with Weapon slot (x1) 993 | -10/Materials | Discovered new exit (range 3) 1061 | -10/Materials | Discovered new exit (range 10) 1142 | -10/Materials | Reached level 4 1153 | -10/Materials | Upgraded with Propulsion slot (x1) 1153 | -10/Materials | Upgraded with Utility slot (x1) 1339 | -10/Materials | Entered Mines 1461 | -10/Mines | Discovered new exit (range 2) 1465 | -10/Mines | Discovered new exit (range 12) 1468 | -10/Mines | Received a Rocket Launcher from a helpful Derelict 1587 | -10/Mines | Reached level 5 1721 | -10/Mines | Escorted by a lone wolf Derelict 1734 | -10/Mines | Discovered new exit (range 6) 1979 | -10/Mines | Deemed a non-threat by the Exiles lab entrance 1980 | -10/Mines | Discovered new exit (range 5) 2098 | -10/Mines | Entered Materials 2100 | -9/Materials | Reached level 6 2263 | -9/Materials | Discovered new exit (range 13) 2357 | -9/Materials | Reached level 7 2536 | -9/Materials | Reached level 8 2557 | -9/Materials | Destroyed 7 combat bots 2892 | -9/Materials | Upgraded with Utility slot (x1) 3154 | -9/Materials | Discovered new exit (range 16) 3248 | -9/Materials | Reached level 9 3261 | -9/Materials | Discovered new exit (range 7) 3444 | -9/Materials | Upgraded with Propulsion slot (x1) 3465 | -9/Materials | Discovered new exit (range 16) 3696 | -9/Materials | Entered Mines 3724 | -9/Mines | Discovered new exit (range 11) 3872 | -9/Mines | Discovered new exit (range 11) 3882 | -9/Mines | Reached level 10 3976 | -9/Mines | Assisted by bots powering up and referring to "LRC-V3" 4062 | -9/Mines | Entered Materials 4062 | -8/Materials | Accompanied by 3 allies 4063 | -8/Materials | Identified exit to Factory 4064 | -8/Materials | Reached level 11 4159 | -8/Materials | Garrison activated, responded to threat 4167 | -8/Materials | Reached level 12 4363 | -8/Materials | Core integrity fell below 50% 4406 | -8/Materials | Discovered exit to Factory (range 8) 4462 | -8/Materials | First assault squad dispatched 4518 | -8/Materials | Upgraded with Utility slot (x1) 4518 | -8/Materials | Upgraded with Weapon slot (x1) 4539 | -8/Materials | Build established: Hacker-Gladiator 4620 | -8/Materials | Central database locked down 4665 | -8/Materials | Reached level 13 4852 | -8/Materials | Upgraded with Utility slot (x1) 4879 | -8/Materials | Entered Factory 4881 | -7/Factory | Reached level 14 5087 | -7/Factory | Discovered new exit (range 8) 5089 | -7/Factory | Identified exit to Factory 5210 | -7/Factory | Identified exit to Storage 5210 | -7/Factory | Identified exit to Lower Caves 5210 | -7/Factory | Reached level 15 5225 | -7/Factory | Fabricated Weapon Mount? 5330 | -7/Factory | Destroyed 10 combat bots 5396 | -7/Factory | Fabricated Powered Hammer (x2) 5646 | -7/Factory | Fabricated Powered Hammer (x2) 5679 | -7/Factory | First assault squad dispatched 5758 | -7/Factory | Identified exit to Garrison 5765 | -7/Factory | Entered Garrison 5777 | -7/Garrison | Triggered checkpoint 5825 | -7/Garrison | Reached level 16 5914 | -7/Garrison | Triggered checkpoint 6005 | -7/Garrison | Triggered checkpoint 6038 | -7/Garrison | Garrison Relay disabled 6060 | -7/Garrison | Discovered new exit (range 11) 6064 | -7/Garrison | Identified exit to Factory 6130 | -7/Garrison | Discovered exit to Factory (range 10) 6137 | -7/Garrison | Triggered checkpoint 6153 | -7/Garrison | Garrison Relay disabled 6159 | -7/Garrison | Discovered exit to Factory (range 58) 6159 | -7/Garrison | Discovered exit to Factory (range 31) 6159 | -7/Garrison | Discovered exit to Factory (range 25) 6183 | -7/Garrison | Attempted to access garrison exit controls, blocked by remote lockdown 6259 | -7/Garrison | Entered Factory 6259 | -7/Factory | Accompanied by 4 allies 6327 | -7/Factory | Discovered exit to Factory (range 11) 6497 | -7/Factory | Upgraded with Weapon slot (x1) 6653 | -7/Factory | Discovered exit to Lower Caves (range 16) 6724 | -7/Factory | Fabricated Hvy. Pick? 6791 | -7/Factory | Build established: Hacker-Scout 6816 | -7/Factory | Core integrity fell below 50% 6825 | -7/Factory | Fabricated Hvy. Pick (x2) 6957 | -7/Factory | Fabricated S-27 Virus? 6968 | -7/Factory | Reached level 17 6970 | -7/Factory | Fabricated Imp. Actuator Array (x2) 6973 | -7/Factory | Upgraded with Propulsion slot (x1) 7039 | -7/Factory | Fabricated Hvy. Pick (x2) 7260 | -7/Factory | Build established: Hacker-Gladiator 7300 | -7/Factory | Identified exit to Garrison 7314 | -7/Factory | Lost 4 allies 7459 | -7/Factory | First assault squad dispatched 7617 | -7/Factory | Cargo convoy interrupted 7692 | -7/Factory | Entered Garrison 7721 | -7/Garrison | Discovered exit to Storage (range 90) 7721 | -7/Garrison | Discovered exit to Storage (range 38) 7721 | -7/Garrison | Discovered exit to Storage (range 69) 7746 | -7/Garrison | Triggered checkpoint 7932 | -7/Garrison | Triggered checkpoint 7946 | -7/Garrison | Triggered checkpoint 8075 | -7/Garrison | Garrison Relay disabled 8124 | -7/Garrison | Attempted to access garrison exit controls, blocked by remote lockdown 8165 | -7/Garrison | Attempted to access garrison exit controls, blocked by remote lockdown 8218 | -7/Garrison | Triggered checkpoint 8221 | -7/Garrison | Garrison Relay disabled 8291 | -7/Garrison | Entered Storage 8291 | -7/Storage | Accompanied by 2 allies 8360 | -7/Storage | Reached level 18 8434 | -7/Storage | Used back door to open Recycling access 8434 | -7/Storage | Discovered new exit (range 3) 8453 | -7/Storage | Learned location of Armory (-3) 8522 | -7/Storage | Garrison activated, responded to threat 8592 | -7/Storage | Destroyed 12 combat bots 8691 | -7/Storage | First assault squad dispatched 8962 | -7/Storage | Upgraded with Power slot (x1) 9023 | -7/Storage | Discovered exit to Factory (range 12) 9098 | -7/Storage | Identified exit to Recycling 9098 | -7/Storage | Entered Recycling 9245 | -7/Recycling | Discovered new exit (range 17) 9347 | -7/Recycling | Scanned before Scraplab entrance 9352 | -7/Recycling | Entered Scraplab 9355 | -7/Recycling | Discovered new exit (range 2) 9355 | -7/Recycling | Identified exit to Scraptown 9355 | -7/Recycling | Entered Scraptown 9355 | -7/Scraptown | System corruption cleaned by C-Scrubber 9379 | -7/Scraptown | Heard Great Nut preacher, LISTEN AND RECITE! 9439 | -7/Scraptown | Visited Bundlers 9454 | -7/Scraptown | Visited Red Mages 9466 | -7/Scraptown | Visited CR-KLE's Repair Center 9469 | -7/Scraptown | Visited The Evicted 9472 | -7/Scraptown | Visited Junk Repository 9479 | -7/Scraptown | Visited Cyclists 9560 | -7/Scraptown | Discovered new exit (range 5) 9562 | -7/Scraptown | Identified exit to Factory 9582 | -7/Scraptown | Entered Factory 9584 | -5/Factory | Reached level 19 9587 | -5/Factory | Upgraded with Utility slot (x1) 9640 | -5/Factory | Spotted B-75 Beast 9656 | -5/Factory | Reached level 20 9656 | -5/Factory | Destroyed B-75 Beast 9825 | -5/Factory | Discovered new exit (range 14) 9835 | -5/Factory | Identified exit to Factory 9840 | -5/Factory | Identified exit to Upper Caves 9882 | -5/Factory | Search patrols dispatched 10006 | -5/Factory | Reached level 21 10177 | -5/Factory | Upgraded with Utility slot (x1) 10259 | -5/Factory | Cargo convoy interrupted 10262 | -5/Factory | Found Prototype Device 10262 | -5/Factory | Identified Exp. Actuator Array 10265 | -5/Factory | Found Exp. Actuator Array 10390 | -5/Factory | Destroyed 10 combat bots 10450 | -5/Factory | Reached level 22 10480 | -5/Factory | Destroyed 9 combat bots 10599 | -5/Factory | Fabricated E-15 Imp (x2) 10782 | -5/Factory | First assault squad dispatched 10808 | -5/Factory | Fabricated Lance (x2) 10830 | -5/Factory | Entered Upper Caves 10860 | -5/Upper Caves | Met a Warlord Commander 10861 | -5/Upper Caves | Learned location of Warlord (-4) 10862 | -5/Upper Caves | Warlord Commander delivered Encrypted Comm Array 10864 | -5/Upper Caves | Found Encrypted Comm Array 10902 | -5/Upper Caves | Spotted B-75 Beast 10921 | -5/Upper Caves | Learned location of 1 exit from Proximity Caves 10932 | -5/Upper Caves | Destroyed B-75 Beast 11121 | -5/Upper Caves | Attracted the attention of an 0b10 checkpoint 11148 | -5/Upper Caves | Discovered new exit (range 14) 11153 | -5/Upper Caves | Identified exit to Upper Caves 11181 | -5/Upper Caves | Entered another Upper Caves area 11183 | -5/Upper Caves | Attracted the attention of an 0b10 checkpoint 11240 | -5/Upper Caves | Learned 4 Factory zone layouts 11334 | -5/Upper Caves | Upgraded with Utility slot (x1) 11361 | -5/Upper Caves | Learned location of 1 exit from Factory 11396 | -5/Upper Caves | Encountered a Warlord checkpoint 11497 | -5/Upper Caves | Discovered new exit (range 14) 11501 | -5/Upper Caves | Identified exit to Zhirov 11576 | -5/Upper Caves | Discovered exit to Factory (range 18) 11595 | -5/Upper Caves | Reached level 23 11612 | -5/Upper Caves | Learned location of 1 exit from Factory 11695 | -5/Upper Caves | Entered Zhirov 11695 | -5/Zhirov | Discovered new exit (range 3) 11715 | -5/Zhirov | Found Alien Artifact 11715 | -5/Zhirov | Identified Integrated Dissipator 11715 | -5/Zhirov | Installed Integrated Dissipator, increased core heat dissipation (+20) 11745 | -5/Zhirov | Learned location of Testing (-2) 11745 | -5/Zhirov | Learned location of Command (-1) 11757 | -5/Zhirov | Cloak Generator disabled 11767 | -5/Zhirov | Enhanced Grunts warped into view 11788 | -5/Zhirov | Core integrity fell below 50% 11794 | -5/Zhirov | Identified exit to Proximity Caves 11808 | -5/Zhirov | Entered Proximity Caves 11818 | -4/Proximity Caves | Lost 8 allies 11833 | -4/Proximity Caves | Spotted B-86 Titan 11846 | -4/Proximity Caves | Core integrity fell below 20% 11858 | -4/Proximity Caves | Destroyed B-86 Titan 11984 | -4/Proximity Caves | Learned Research terminal intel 11992 | -4/Proximity Caves | Learned Research trap positions 12058 | -4/Proximity Caves | Reached level 24 12069 | -4/Proximity Caves | Upgraded with Utility slot (x1) 12138 | -4/Proximity Caves | Entered Factory 12139 | -4/Factory | Identified exit to Upper Caves 12139 | -4/Factory | Identified exit to Research 12139 | -4/Factory | Core integrity fell below 50% 12248 | -4/Factory | Core integrity fell below 20% 12320 | -4/Factory | Spotted B-86 Titan 12388 | -4/Factory | Search patrols dispatched 12413 | -4/Factory | Destroyed by P-70 Sage with Tesla Rifle Last Messages --------------- Array. 12379_ U-05 Engineer repairs door. 12388_ ALERT: Heightened foreign activity detected, multiple search patrols dispatched. 12391_ W-44 Eye distress signal alerts nearby ally. 12396_ Penetrated by Slug. 12408_ Slug penetrates Wall. 12408_ Door malfunctions. 12412_ Destroyed Mic. Fission Core. 12412_ Lance follow-up attack on P-70 Sage. 12412_ P-70 Sage suffers critical hit (Impale). 12412_ Destroyed Antigrav System. 12412_ Thunder Hammer follow-up attack on P-70 Sage. 12412_ Destroyed Imp. Heat Sink. 12412_ P-70 Sage system corrupted by crushing effect. 12412_ P-70 Sage knocked back. 12413_ Subcomponent Replicator disabled. Map ----- +----------------------------------------------------+ | ????# #?????????????????? | | ????# #?????????????????? | | ????# #######+??????????? | | ????# ?????????? | | ????# " ?????????? | | ????# ?????????? | | ????# ?????????? | | ????# ?????????? | | ????# ################ ??????????? | | ??????##+### #???????????????????????????? | | ??????? ???# #???????????????????????????? | | ???????????# #???????????????????????????? | | ???????????# """" #???????????????????????????? | | ???????????# """" #???????????????????????????? | | ???????????# """" #???????????????????????????? | | ???????????# """" #???????????????????????????? | | ???????????# """" #???????????????????????????? | | ?########### """" ##########??????????????????? | | """" ######## #?????????? | | ??????????? | | """"" "" ####???????????????? | | ?"""" T" ########### #??????????????????? | | ?"""" "" # * # ########+??????????? | | ?"""" # p/ # ??????????? | | ?? # """"" p# # """" ""?? #?????? | | ?? # """"" @# # """" """" #?????? | | ? # """ # # """" """" #?????? | | ? # = # # """" """" #?????? | | ? # """ " # # """" """" #?????? | | ?? ############# """"" # / """" """" #?????? | | ?? ????????????# """ # # """" #?????? | | ?? ?????????????# # # #?????? | | ????????????????# """"" # # #?????? | | ????????????????# """"" + + #?????? | | ????????????????# """ ##### #?????? | | ????????????????# ] =#???##############?????? | | ????????????????###########??????????????????????? | | ?????????????????????????????????????????????????? | | ?????????????????????????????????????????????????? | | ?????????????????????????????????????????????????? | | ?????????????????????????????????????????????????? | | ?????????????????????????????????????????????????? | | ?????????????????????????????????????????????????? | | ?????????????????????????????????????????????????? | | ?????????????????????????????????????????????????? | | ?????????????????????????????????????????????????? | | ?????????????????????????????????????????????????? | | ?????????????????????????????????????????????????? | | ?????????????????????????????????????????????????? | | ?????????????????????????????????????????????????? | +----------------------------------------------------+ Best States ------------- Heat Dissipation 87 Energy Generation 59 Energy Capacity 730 Matter Stores 300 Matter Capacity 300 Sight Range 18 Robot Scan Range 4 Terrain Scan Range 16 Terrain Scan Density 510 Additional Mass Support 12 Armor Coverage 600 Resistance: KI 40 Resistance: TH 30 Resistance: EX 20 Resistance: EM 35 Resistance: I 20 Resistance: S 20 Resistance: P 20 Power Shielding 33 Melee Speed Boost 40 Evasion (%) 72 Targeting Accuracy 20 Target Analysis 11 Offensive Hacking 30 Defensive Hacking 20 Authchip Count 1 Item Schematics ----------------- Actuator Array | -8/Materials | Hacked Weapon Shielding | -8/Materials | Hacked Weapon Mount | -7/Factory | Hacked Powered Hammer | -7/Factory | Hacked Imp. Actuator Array | -7/Factory | Hacked Hvy. Pick | -7/Factory | Hacked Microactuators | -7/Recycling | Hacked Lance | -5/Factory | Scanalyzed Assault Drone Bay | -5/Zhirov | Free Exp. Optical Array | -5/Zhirov | Free Exp. Heat Sink | -5/Zhirov | Free Imp. Arc Thrower | -5/Zhirov | Free Robot Schematics ------------------ R-06 Scavenger | -7/Factory | Hacked S-27 Virus | -7/Factory | Hacked E-15 Imp | -5/Factory | Hacked Fabricated ------------ Weapon Mount | x2 | -7/Factory Powered Hammer | x2 | -7/Factory Powered Hammer | x2 | -7/Factory Hvy. Pick | x2 | -7/Factory Hvy. Pick | x2 | -7/Factory S-27 Virus | x4 | -7/Factory | Preloaded Imp. Actuator Array | x2 | -7/Factory Hvy. Pick | x2 | -7/Factory E-15 Imp | x2 | -5/Factory Lance | x2 | -5/Factory Alien Tech Used ----------------- Integrated Dissipator Achievements -------------- None Challenges ------------ None RPGLIKE | -11 -10 -10 -9 -9 -8 -7 -7 -7 -7 -7 -7 -7 -5 -5 -5 -5 -4 -4 --------- Run | Yrd Mat Min Mat Min Mat Fac Gar Fac Gar Sto Rec Scr Fac Upp Upp Zhi Pro Fac Levels Raised 23 | . 3 1 4 1 3 2 1 1 . 1 . . 4 . 1 . 1 . XP Earned 39511 | 4000 4707 1856 6232 785 4809 3732 1464 885 622 1264 341 82 5159 551 518 118 1473 913 XP Spent 38500 | 2000 6220 . 2800 . 10850 400 . 3750 1650 800 . . 4300 . 2600 . 3005 125 Upgrades 63 | 4 18 . 3 . 16 2 . 7 3 1 . . 2 . 1 . 4 2 Power Slot 2 | 1 . . . . . . . . . 1 . . . . . . . . Propulsion Slot 4 | 1 1 . 1 . . . . 1 . . . . . . . . . . Utility Slot 9 | 1 1 . 1 . 2 . . . . . . . 2 . 1 . 1 . Weapon Slot 5 | 1 2 . . . 1 . . 1 . . . . . . . . . . Core Integrity 3 | . . . . . . . . . . . . . . . . . 3 . Heat Dissipation 7 | . 7 . . . . . . . . . . . . . . . . . Energy Generation 3 | . . . . . . . . . 3 . . . . . . . . . Mass Support 2 | . 1 . 1 . . . . . . . . . . . . . . . Inventory Capacity 3 | . 2 . . . 1 . . . . . . . . . . . . . Sight Range 2 | . . . . . . 2 . . . . . . . . . . . . Sensor Range 2 | . . . . . . . . . . . . . . . . . . 2 Terrain Scan Density 5 | . . . . . . . . 5 . . . . . . . . . . Melee Accuracy 3 | . 3 . . . . . . . . . . . . . . . . . Hack Attack % 4 | . . . . . 4 . . . . . . . . . . . . . Hack Defense % 4 | . . . . . 4 . . . . . . . . . . . . . KI Resistance % 2 | . . . . . 2 . . . . . . . . . . . . . TH Resistance % 2 | . . . . . 2 . . . . . . . . . . . . . KI Damage % 1 | . 1 . . . . . . . . . . . . . . . . . Protomatter Created 4922 | . 395 147 730 91 544 270 274 310 101 720 54 . 962 134 66 . 48 76 Integrity Restored 8716 | . 460 363 925 195 677 787 717 1002 126 1120 158 . 1480 237 97 . 144 228 Core 6101 | . 422 178 562 111 490 483 422 738 126 740 132 . 1068 237 20 . 144 228 Parts 2615 | . 38 185 363 84 187 304 295 264 . 380 26 . 412 . 77 . . . Protomatter Decayed 1628 | . 80 22 259 18 376 . 122 165 . 174 . . 382 . 30 . . . Game ------ Seed HypercooledMicroStorm Manual? 0 Play Time 02:25:13 Cumulative 286.8 hours Start 2025.03.26 @ 08:20:31 End 2025.03.26 @ 11:51:13 Sessions 1 Manual Loads 0 Difficulty Adventurer Special Mode Winter2019/RPGLIKE Game No. 117 Rogue 0 Adventurer 117 Explorer 0 Win Type - Total 12 Types 2/3/3/2/1/0/0/0/1 Lore% 82 Gallery% 77 Achievement% 79 Wizard Run 0 Options --------- Layout 2 ASCII 0 Keyboard 0 Movement Numpad Keybinds 0 Fullscreen 2 Font 24/Smallcaps Map View 50x44 Zoom Use 0% Tactical HUD 1 Map Filters NONE Filters NONE Steam 1 RUN: a0f76b64-1f14-4d5c-9845-cd59c93aed69